bitfinex/quotes_SOLUSD_20241225
["timestamp","ask_amount","ask_price","bid_price","bid_amount"]
[1735167145601,24.54247967,196.94,196.89,7.93185691]
[1735167150017,24.54247967,196.94,196.9,7.93185691]
[1735167150189,24.54247967,196.94,196.89,7.93185691]
[1735167150511,0.76559567,196.94,196.89,7.93185691]
[1735167150688,24.54247967,196.96,196.89,7.93185691]
[1735167155926,0.76559567,197.0,196.91,37.93185691]
[1735167156099,7.93185691,196.99,196.91,37.93185691]
[1735167156411,8.69745258,196.98,196.91,37.93185691]
[1735167157232,23.776884,196.97,196.91,37.93185691]
[1735167158013,23.776884,196.97,196.91,30.0]
[1735167158214,8.69745258,196.96,196.91,30.0]
[1735167158512,7.93185691,196.96,196.91,30.0]
[1735167158722,23.776884,196.97,196.91,30.0]
[1735167158935,24.54247967,196.97,196.91,37.93185691]
[1735167162206,23.776884,196.97,196.91,37.93185691]
[1735167162908,23.776884,196.98,196.91,37.93185691]
[1735167163115,23.776884,196.96,196.91,37.93185691]
[1735167164811,22.776884,196.96,196.92,1.611]
[1735167165519,0.76559567,196.99,196.93,7.93185691]
[1735167167032,23.776884,196.98,196.93,7.93185691]
[1735167167209,0.76559567,196.97,196.93,7.93185691]
[1735167167413,24.54247967,196.99,196.93,7.93185691]
[1735167172026,23.776884,196.99,196.93,37.93185691]
[1735167173314,23.776884,197.0,196.93,37.93185691]
[1735167173643,24.54247967,197.01,196.93,37.93185691]
[1735167175527,23.776884,197.0,196.93,37.93185691]
[1735167176045,23.776884,197.0,196.94,7.92434254]
[1735167180923,24.54247967,197.01,196.94,7.92434254]
[1735167182726,24.54247967,197.01,196.95,7.9233552]
[1735167182927,24.54247967,197.01,196.96,6.3615]
[1735167183139,23.776884,197.02,196.96,6.3615]
[1735167183448,24.54247967,197.02,196.96,6.3615]
[1735167184534,23.776884,197.02,196.96,6.3615]
[1735167186855,23.776884,197.03,196.97,7.9233552]
[1735167187149,24.54247967,197.03,196.97,7.9233552]
[1735167193252,24.54247967,197.03,196.97,37.9233552]
[1735167193429,23.776884,197.03,196.97,37.9233552]
[1735167193630,24.54247967,197.03,196.97,37.9233552]
[1735167194759,24.54247967,197.03,196.97,30.0]
[1735167196354,23.776884,197.03,196.97,30.0]
[1735167196959,23.776884,197.03,196.98,1.5444]
[1735167197128,23.776884,197.04,196.98,1.5444]
[1735167197328,0.76559567,197.03,196.98,1.5444]
[1735167208659,23.776884,197.04,196.98,1.5444]
[1735167209874,24.54247967,197.04,196.98,1.5444]
[1735167210249,24.54247967,197.04,196.98,9.4677552]
[1735167210441,24.54247967,197.04,196.98,1.5444]
[1735167218059,24.54247967,197.04,196.97,30.0]
[1735167220878,0.76559567,197.03,196.97,30.0]
[1735167230857,0.76559567,197.03,196.98,7.9233552]
[1735167231884,0.76559567,197.06,197.0,30.0]
[1735167232183,0.76559567,197.08,197.0,37.9233552]
[1735167232389,0.76559567,197.08,197.02,7.9233552]
[1735167233087,23.776884,197.08,197.02,7.9233552]
[1735167233381,0.76559567,197.07,197.02,7.9233552]
[1735167234888,0.76559567,197.07,197.0,30.0]
[1735167235188,0.76559567,197.07,197.0,37.9233552]
[1735167235386,31.7002392,197.08,197.0,37.9233552]
[1735167235583,23.776884,197.08,197.02,37.9233552]
[1735167236000,23.776884,197.09,197.02,37.9233552]
[1735167237081,0.76559567,197.1,197.03,6.078]
[1735167237280,23.776884,197.09,197.03,14.0013552]
[1735167237491,23.776884,197.09,197.03,6.078]
[1735167237791,23.776884,197.09,197.03,14.0013552]
[1735167248394,23.776884,197.09,197.03,6.078]
[1735167248570,23.776884,197.09,197.04,7.9233552]
[1735167250898,23.776884,197.09,197.03,6.078]
[1735167251096,23.776884,197.09,197.04,9.5366552]
[1735167251594,23.776884,197.09,197.04,1.6133]
[1735167251788,23.776884,197.09,197.04,9.5366552]
[1735167259412,23.776884,197.1,197.04,9.5366552]
[1735167259596,24.54247967,197.1,197.04,9.5366552]
[1735167260912,24.54247967,197.1,197.04,1.6133]
[1735167261909,24.54247967,197.1,197.03,6.078]
[1735167262101,24.54247967,197.1,197.02,7.9233552]
[1735167262491,7.9233552,197.09,197.02,7.9233552]
[1735167262808,24.54247967,197.08,197.02,7.9233552]
[1735167262999,23.776884,197.06,196.99,1.5751]
[1735167263198,23.776884,197.04,196.98,6.5339]
[1735167263412,23.776884,197.04,196.97,12.81967976]
[1735167263413,0.76559567,197.03,196.97,7.9233552]
[1735167263887,23.776884,197.02,196.94,31.5751]
[1735167264084,0.76559567,197.01,196.96,7.9233552]
[1735167264802,0.76559567,197.01,196.94,7.9233552]
[1735167264803,23.776884,197.0,196.94,7.9233552]
[1735167265111,23.776884,196.98,196.9,42.6967]
[1735167265291,0.76559567,196.97,196.92,7.9233552]
[1735167265498,0.76559567,196.97,196.91,7.9233552]
[1735167268224,23.776884,196.96,196.91,7.9233552]
[1735167268431,0.76559567,196.95,196.91,7.9233552]
[1735167268927,0.76559567,196.95,196.91,20.0]
[1735167269138,23.776884,196.94,196.91,20.0]
[1735167269310,23.776884,196.94,196.92,20.0]
[1735167269610,23.776884,196.94,196.89,7.9233552]
[1735167271232,23.776884,196.94,196.88,45.74552705]
[1735167271410,23.776884,196.94,196.89,7.9233552]
[1735167280242,23.776884,196.95,196.88,39.21162705]
[1735167280453,0.76559567,196.94,196.89,7.9233552]
[1735167307163,8.68895087,196.94,196.86,30.0]
[1735167307368,23.776884,196.93,196.86,30.0]
[1735167307544,0.76559567,196.92,196.86,7.9233552]
[1735167309184,0.76559567,196.92,196.87,20.0]
[1735167310479,0.76559567,196.92,196.86,7.9233552]
[1735167311577,0.76559567,196.92,196.84,42.7006]
[1735167311886,0.76559567,196.92,196.86,7.9233552]
[1735167312250,23.776884,196.91,196.86,7.9233552]
[1735167312477,0.76559567,196.9,196.86,7.9233552]
[1735167312678,0.76559567,196.9,196.84,30.0]
[1735167312679,23.776884,196.89,196.84,7.9233552]
[1735167312981,0.76559567,196.88,196.82,37.9233552]
[1735167313551,0.76559567,196.88,196.82,30.0]
[1735167313758,0.76559567,196.88,196.79,8.6994293]
[1735167313759,23.776884,196.87,196.83,7.9233552]
[1735167313959,0.76559567,196.86,196.83,7.9233552]
[1735167314384,23.776884,196.87,196.83,7.9233552]
[1735167314561,23.776884,196.88,196.83,7.9233552]
[1735167314764,0.76559567,196.87,196.83,7.9233552]
[1735167316782,0.76559567,196.87,196.8,30.0]
[1735167317088,0.76559567,196.87,196.82,7.9233552]
[1735167318596,0.76559567,196.87,196.8,30.0]
[1735167318761,0.76559567,196.87,196.82,7.9233552]
[1735167319797,0.76559567,196.87,196.8,30.0]
[1735167319971,0.76559567,196.87,196.82,7.9233552]
[1735167324789,0.76559567,196.87,196.8,30.0]
[1735167325099,0.76559567,196.87,196.82,7.9233552]
[1735167326298,0.76559567,196.87,196.8,30.0]
[1735167326588,23.776884,196.86,196.78,42.7045]
[1735167326798,0.76559567,196.85,196.8,7.9233552]
[1735167327805,8.68895087,196.85,196.78,30.0]
[1735167328099,29.817184,196.84,196.76,37.9233552]
[1735167328267,0.76559567,196.83,196.76,37.9233552]
[1735167329304,0.76559567,196.83,196.76,30.0]
[1735167329474,0.76559567,196.83,196.76,37.9233552]
[1735167331903,0.76559567,196.83,196.77,7.9233552]
[1735167334011,0.76559567,196.83,196.76,37.9233552]
[1735167337696,8.68895087,196.83,196.76,37.9233552]
[1735167337888,8.68895087,196.83,196.76,30.0]
[1735167338077,8.68895087,196.83,196.76,37.9233552]
[1735167339682,8.68895087,196.83,196.76,30.0]
[1735167339883,0.76559567,196.83,196.76,37.9233552]
[1735167340291,8.68895087,196.83,196.76,30.0]
[1735167341014,0.76559567,196.83,196.78,7.9233552]
[1735167341807,0.76559567,196.83,196.76,30.0]
[1735167342010,0.76559567,196.83,196.78,7.9233552]
[1735167342700,0.76559567,196.83,196.76,30.0]
[1735167343182,0.76559567,196.83,196.78,7.9233552]
[1735167349240,0.76559567,196.83,196.76,30.0]
[1735167349513,0.76559567,196.83,196.78,7.9233552]
[1735167353518,23.776884,196.82,196.76,7.9233552]
[1735167353701,0.76559567,196.81,196.76,7.9233552]
[1735167354610,0.76559567,196.82,196.76,7.9233552]
[1735167356126,0.76559567,196.82,196.75,7.9233552]
[1735167356629,8.68895087,196.82,196.75,7.9233552]
[1735167357323,1.5737,196.81,196.74,7.9233552]
[1735167357530,0.76559567,196.8,196.74,7.9233552]
[1735167358235,0.76559567,196.8,196.75,7.9233552]
[1735167359133,0.76559567,196.8,196.74,20.0]
[1735167359336,0.76559567,196.8,196.75,7.9233552]
[1735167359830,23.902374,196.79,196.71,20.0]
[1735167360128,0.76559567,196.78,196.73,7.9233552]
[1735167360428,0.76559567,196.78,196.71,20.0]
[1735167360618,0.76559567,196.78,196.73,7.9233552]
[1735167364932,0.76559567,196.79,196.73,7.9233552]
[1735167365311,0.76559567,196.79,196.68,30.0]
[1735167365517,0.76559567,196.79,196.71,7.9233552]
[1735167371244,0.76559567,196.79,196.66,52.74226459]
[1735167371539,0.76559567,196.79,196.71,7.9233552]
[1735167371540,15.8520552,196.78,196.71,7.9233552]
[1735167371844,0.76559567,196.77,196.71,7.9233552]
[1735167375350,0.76559567,196.77,196.7,7.9233552]
[1735167379741,0.76559567,196.77,196.66,44.79406459]
[1735167380039,0.76559567,196.77,196.7,7.9233552]
[1735167388959,8.68895087,196.77,196.7,7.9233552]
[1735167389279,0.76559567,196.77,196.7,7.9233552]
[1735167390964,0.76559567,196.77,196.66,44.79406459]
[1735167390965,0.76559567,196.77,196.72,7.9233552]
[1735167391131,2.35559567,196.83,196.74,7.9233552]
[1735167391332,7.9233552,196.82,196.74,7.9233552]
[1735167391531,0.76559567,196.81,196.74,7.9233552]
[1735167392954,0.76559567,196.82,196.75,7.9233552]
[1735167393140,8.68895087,196.82,196.75,7.9233552]
[1735167394337,0.76559567,196.82,196.75,7.9233552]
[1735167394640,8.68895087,196.82,196.75,7.9233552]
[1735167394934,8.68895087,196.82,196.74,7.9233552]
[1735167401267,8.68895087,196.82,196.73,23.776884]
[1735167404465,0.76559567,196.82,196.73,23.776884]
[1735167404671,8.68895087,196.82,196.73,23.776884]
[1735167405665,8.68895087,196.82,196.74,37.9233552]
[1735167409063,8.68895087,196.82,196.75,23.776884]
[1735167409284,7.9233552,196.82,196.75,23.776884]
[1735167409475,2.35559567,196.83,196.75,31.7002392]
[1735167414881,1.59,196.83,196.76,30.0]
[1735167415053,2.35559567,196.83,196.76,30.0]
[1735167415978,1.59,196.83,196.76,30.0]
[1735167419080,1.59,196.83,196.77,31.7002392]
[1735167420559,1.59,196.83,196.78,30.0]
[1735167428798,1.59,196.83,196.8,30.0]
[1735167430097,7.9233552,196.87,196.8,30.0]
[1735167431911,1.5323,196.86,196.8,30.0]
[1735167434607,1.5323,196.86,196.81,7.9233552]
[1735167435109,1.5323,196.86,196.82,53.776884]
[1735167435305,1.5323,196.86,196.83,7.9233552]
[1735167435693,6.5441,196.89,196.83,7.9233552]
[1735167441418,6.5441,196.89,196.84,53.776884]
[1735167446522,6.5441,196.89,196.83,23.776884]
[1735167446725,6.5441,196.89,196.83,31.7002392]
[1735167456052,6.5441,196.89,196.84,30.0]
[1735167465428,6.5441,196.89,196.8,42.7027]
[1735167465630,0.76559567,196.88,196.83,20.0]
[1735167465832,0.76559567,196.88,196.84,20.0]
[1735167471758,0.76559567,196.88,196.83,20.0]
[1735167475354,7.9233552,196.86,196.77,12.705]
[1735167475659,0.76559567,196.85,196.77,20.6283552]
[1735167476362,8.68895087,196.85,196.77,7.9233552]
[1735167476656,8.68895087,196.85,196.72,4.37216213]
[1735167476657,7.9233552,196.83,196.73,14.74926587]
[1735167476859,0.76559567,196.82,196.76,7.9233552]
[1735167478458,16.0222452,196.84,196.76,7.9233552]
[1735167478459,0.76559567,196.83,196.76,7.9233552]
[1735167478843,0.76559567,196.83,196.77,7.9233552]
[1735167479384,0.76559567,196.83,196.76,20.0]
[1735167479560,0.76559567,196.83,196.77,7.9233552]
[1735167479933,0.76559567,196.83,196.76,27.9233552]
[1735167480662,0.76559567,196.83,196.76,20.0]
[1735167481166,9.5640452,196.82,196.69,13.47197296]
[1735167481468,1.64069,196.77,196.7,7.9233552]
[1735167481665,0.76559567,196.76,196.7,7.9233552]
[1735167481835,0.76559567,196.76,196.69,7.9233552]
[1735167482031,0.76559567,196.76,196.64,71.97734052]
[1735167482231,6.0351,196.75,196.67,7.9233552]
[1735167482431,1.5152,196.73,196.67,7.9233552]
[1735167482663,0.76559567,196.72,196.67,7.9233552]
[1735167482958,0.76559567,196.72,196.62,12.7143]
[1735167483161,0.76559567,196.72,196.6,30.0]
[1735167483162,8.68895087,196.72,196.65,7.9233552]
[1735167483367,8.68895087,196.72,196.64,7.9233552]
[1735167484378,8.68895087,196.72,196.63,7.9233552]
[1735167484379,7.9233552,196.7,196.63,7.9233552]
[1735167484662,0.76559567,196.69,196.63,7.9233552]
[1735167485156,7.5503,196.68,196.58,12.717]
[1735167485362,0.76559567,196.67,196.61,7.9233552]
[1735167485935,0.76559567,196.67,196.59,23.776884]
[1735167486137,0.76559567,196.67,196.61,7.9233552]
[1735167487583,8.68895087,196.67,196.59,7.9233552]
[1735167488661,7.9233552,196.66,196.59,7.9233552]
[1735167488880,0.76559567,196.65,196.59,7.9233552]
[1735167489380,8.68895087,196.67,196.59,7.9233552]
[1735167489560,0.76559567,196.67,196.6,7.9233552]
[1735167490369,8.68895087,196.67,196.6,7.9233552]
[1735167491194,7.9233552,196.66,196.59,7.9233552]
[1735167491371,0.76559567,196.65,196.59,7.9233552]
[1735167492400,0.76559567,196.65,196.6,7.9233552]
[1735167492601,0.76559567,196.66,196.6,7.9233552]
[1735167494483,0.76559567,196.66,196.59,7.9233552]
[1735167496197,0.76559567,196.67,196.61,7.9233552]
[1735167496493,1.5152,196.68,196.64,7.9233552]
[1735167496701,1.5152,196.68,196.65,7.9233552]
[1735167497800,7.818,196.73,196.66,7.9233552]
[1735167497972,0.76559567,196.72,196.67,7.9233552]
[1735167499695,7.818,196.73,196.68,7.9233552]
[1735167500594,7.818,196.73,196.69,7.9233552]
[1735167500799,1.5049,196.73,196.69,7.9233552]
[1735167502005,1.5049,196.73,196.69,37.9233552]
[1735167502185,0.76559567,196.77,196.7,7.9233552]
[1735167505913,0.76559567,196.77,196.72,7.9233552]
[1735167506207,1.5049,196.78,196.74,7.9233552]
[1735167507000,1.5049,196.78,196.73,7.9233552]
[1735167508112,1.5049,196.78,196.74,7.9233552]
[1735167511109,1.5049,196.78,196.76,7.9233552]
[1735167512110,1.5049,196.78,196.74,30.0]
[1735167512284,1.5049,196.78,196.75,7.9233552]
[1735167514013,1.5049,196.78,196.73,31.7002392]
[1735167514906,1.5049,196.78,196.75,7.9233552]
[1735167515412,1.5049,196.78,196.72,30.0]
[1735167515413,1.5049,196.78,196.69,30.0]
[1735167515911,0.76559567,196.77,196.71,7.9233552]
[1735167519110,0.76559567,196.77,196.69,30.0]
[1735167519320,0.76559567,196.77,196.72,7.9233552]
[1735167519830,0.76559567,196.77,196.69,30.0]
[1735167519999,0.76559567,196.77,196.71,7.9233552]
[1735167520202,0.76559567,196.77,196.67,23.776884]
[1735167520203,6.2548,196.76,196.67,23.776884]
[1735167520507,0.76559567,196.75,196.68,7.9233552]
[1735167522627,0.76559567,196.75,196.65,23.776884]
[1735167522829,0.76559567,196.75,196.69,7.9233552]
[1735167523001,8.68895087,196.75,196.69,7.9233552]
[1735167523604,1.5112,196.74,196.67,7.9233552]
[1735167523809,0.76559567,196.73,196.67,7.9233552]
[1735167524127,8.68895087,196.73,196.6,30.0]
[1735167524327,8.0488452,196.72,196.64,7.9233552]
[1735167524529,0.76559567,196.71,196.64,7.9233552]
[1735167524829,8.68895087,196.71,196.64,7.9233552]
[1735167525627,0.76559567,196.71,196.65,7.9233552]
[1735167526227,7.9576,196.69,196.63,7.9233552]
[1735167526433,0.76559567,196.68,196.63,7.9233552]
[1735167527104,8.0488452,196.67,196.6,7.9233552]
[1735167527329,0.76559567,196.66,196.6,7.9233552]
[1735167528931,8.0488452,196.65,196.53,30.0]
[1735167529130,1.5297,196.63,196.57,7.9233552]
[1735167529300,0.76559567,196.62,196.57,7.9233552]
[1735167529795,0.76559567,196.62,196.58,7.9233552]
[1735167529998,1.5297,196.63,196.6,7.9233552]
[1735167530227,1.5297,196.63,196.62,7.9233552]
[1735167530433,1.5297,196.67,196.62,7.9233552]
[1735167530619,1.5297,196.67,196.65,7.9233552]
[1735167531631,1.5297,196.67,196.64,7.9233552]
[1735167532912,1.5297,196.67,196.63,7.9233552]
[1735167539736,2.29529567,196.72,196.64,53.776884]
[1735167539941,1.5297,196.72,196.66,7.9233552]
[1735167542951,1.599,196.77,196.7,37.9233552]
[1735167543248,1.599,196.77,196.74,7.9233552]
[1735167544126,8.68895087,196.81,196.74,7.9233552]
[1735167545654,0.76559567,196.81,196.74,7.9233552]
[1735167549153,2.36459567,196.82,196.76,7.9233552]
[1735167553349,1.599,196.87,196.78,7.9233552]
[1735167553548,2.36459567,196.87,196.82,7.9233552]
[1735167553851,1.599,196.87,196.85,7.9233552]
[1735167554151,0.76559567,196.91,196.86,7.9233552]
[1735167554350,0.76559567,196.91,196.87,7.9233552]
[1735167555758,0.76559567,196.96,196.9,7.9233552]
[1735167556133,0.76559567,196.96,196.91,7.9233552]
[1735167558854,8.68895087,196.96,196.86,30.0]
[1735167559044,7.9233552,196.93,196.86,7.9233552]
[1735167559248,0.76559567,196.92,196.86,7.9233552]
[1735167561059,0.76559567,196.92,196.78,31.5513]
[1735167561060,1.5646,196.9,196.78,31.5513]
[1735167561269,7.18289567,196.89,196.82,7.9233552]
[1735167561980,15.10625087,196.89,196.82,7.9233552]
[1735167562159,0.12549,196.88,196.82,7.9233552]
[1735167562363,0.12549,196.88,196.81,7.9233552]
[1735167562568,8.0488452,196.88,196.8,7.9233552]
[1735167562746,0.76559567,196.87,196.8,7.9233552]
[1735167563063,8.68895087,196.87,196.8,7.9233552]
[1735167563639,8.0488452,196.86,196.79,7.9233552]
[1735167563968,8.68895087,196.85,196.78,7.9233552]
[1735167564477,0.76559567,196.85,196.78,7.9233552]
[1735167564639,0.12549,196.84,196.72,31.5513]
[1735167564965,1.5646,196.82,196.75,7.9233552]
[1735167565172,0.76559567,196.81,196.75,7.9233552]
[1735167565338,0.12549,196.8,196.7,30.0]
[1735167565539,6.54279,196.8,196.73,7.9233552]
[1735167565758,6.54279,196.8,196.68,61.6934208]
[1735167565759,0.76559567,196.79,196.72,7.9233552]
[1735167566381,0.12549,196.78,196.72,7.9233552]
[1735167566682,8.68895087,196.79,196.71,7.9233552]
[1735167566869,0.76559567,196.79,196.74,7.9233552]
[1735167567198,0.76559567,196.79,196.75,7.9233552]
[1735167567479,6.4173,196.8,196.75,7.9233552]
[1735167568180,6.4173,196.8,196.75,12.40771394]
[1735167568682,6.4173,196.8,196.76,12.40771394]
[1735167568882,2.33019567,196.82,196.76,12.40771394]
[1735167569684,1.5646,196.82,196.76,12.40771394]
[1735167570888,1.5646,196.82,196.78,12.40771394]
[1735167574791,0.76559567,196.81,196.78,12.40771394]
[1735167575996,1.5646,196.82,196.78,12.40771394]
[1735167580100,1.5646,196.82,196.76,12.40771394]
[1735167582709,0.76559567,196.81,196.74,12.40771394]
[1735167582883,0.12549,196.8,196.73,12.40771394]
[1735167583207,13.17330961,196.81,196.73,12.40771394]
[1735167583577,12.53320394,196.8,196.73,12.40771394]
[1735167583792,0.76559567,196.79,196.68,30.0]
[1735167584002,13.17330961,196.79,196.72,12.40771394]
[1735167584576,12.53320394,196.78,196.71,12.40771394]
[1735167584781,6.92759567,196.77,196.71,12.40771394]
[1735167585306,6.92759567,196.77,196.7,12.40771394]
[1735167586008,1.6342,196.75,196.7,12.40771394]
[1735167586307,1.6342,196.75,196.6,1.6537]
[1735167586308,13.17330961,196.74,196.67,12.40771394]
[1735167586504,2.39979567,196.75,196.7,12.40771394]
[1735167586804,2.39979567,196.75,196.71,12.40771394]
[1735167587707,1.6342,196.75,196.71,12.40771394]
[1735167590304,1.6342,196.75,196.72,7.94333165]
[1735167592703,2.39979567,196.75,196.7,7.94333165]
[1735167593484,1.6342,196.75,196.7,7.94333165]
[1735167594719,0.76559567,196.79,196.72,7.94333165]
[1735167594890,0.76559567,196.79,196.74,7.94333165]
[1735167595912,1.6342,196.8,196.74,7.94333165]
[1735167596086,0.76559567,196.79,196.74,7.94333165]
[1735167597510,0.76559567,196.79,196.76,7.94333165]
[1735167597693,1.6342,196.8,196.76,7.94333165]
[1735167599512,2.39979567,196.8,196.76,7.94333165]
[1735167599920,1.6342,196.8,196.76,7.94333165]
[1735167600495,0.76559567,196.84,196.78,7.94333165]
[1735167600701,0.76559567,196.84,196.8,7.94333165]
[1735167600919,1.6342,196.85,196.8,7.94333165]
[1735167601211,0.76559567,196.89,196.8,30.0]
[1735167601416,0.76559567,196.89,196.81,20.0]
[1735167601591,0.76559567,196.89,196.83,7.94333165]
[1735167601918,1.6342,196.9,196.82,30.0]
[1735167602107,0.76559567,196.89,196.82,30.0]
[1735167602293,1.6342,196.9,196.86,7.94333165]
[1735167602601,1.6342,196.9,196.87,7.94333165]
[1735167602804,1.6342,196.9,196.86,7.94333165]
[1735167603018,1.6342,196.9,196.8,30.0]
[1735167603210,0.76559567,196.89,196.83,7.94333165]
[1735167604722,0.12549,196.88,196.79,7.94333165]
[1735167604929,0.12549,196.86,196.79,7.94333165]
[1735167605424,0.12549,196.84,196.79,7.94333165]
[1735167605620,1.5331,196.83,196.77,7.94333165]
[1735167605824,0.76559567,196.82,196.77,7.94333165]
[1735167606007,0.12549,196.81,196.75,7.94333165]
[1735167606203,8.06882165,196.81,196.73,7.94333165]
[1735167606527,0.12549,196.79,196.73,7.94333165]
[1735167608031,0.12549,196.79,196.75,7.94333165]
[1735167608209,0.12549,196.79,196.75,12.40772551]
[1735167608408,0.89108567,196.81,196.75,12.40772551]
[1735167608937,20.19142551,196.76,196.69,12.40772551]
[1735167609100,13.29881118,196.75,196.67,12.40772551]
[1735167609297,0.12549,196.73,196.67,12.40772551]
[1735167609539,0.89108567,196.73,196.67,12.40772551]
[1735167610331,0.89108567,196.73,196.66,12.40772551]
[1735167610511,0.12549,196.7,196.63,12.40772551]
[1735167610709,1.5331,196.68,196.61,12.40772551]
[1735167610910,0.76559567,196.67,196.61,12.40772551]
[1735167613036,0.76559567,196.67,196.64,12.40772551]
[1735167613236,1.5331,196.68,196.6,30.0]
[1735167613536,1.5331,196.68,196.66,12.40772551]
[1735167613830,0.76559567,196.72,196.66,12.40772551]
[1735167614036,0.76559567,196.72,196.68,12.40772551]
[1735167614448,1.6257,196.73,196.68,12.40772551]
[1735167615112,1.6257,196.73,196.7,12.40772551]
[1735167617018,0.76559567,196.75,196.72,12.40772551]
[1735167617345,0.76559567,196.77,196.74,12.40772551]
[1735167617642,1.5686,196.78,196.75,12.40772551]
[1735167618738,1.5686,196.78,196.76,12.40772551]
[1735167619054,1.5686,196.78,196.75,12.40772551]
[1735167619749,1.5686,196.78,196.74,12.40772551]
[1735167619952,1.5686,196.78,196.73,12.40772551]
[1735167620155,0.12549,196.77,196.73,12.40772551]
[1735167620329,0.89108567,196.77,196.63,30.0]
[1735167620651,13.29881118,196.77,196.69,12.40772551]
[1735167621329,0.89108567,196.77,196.71,12.40772551]
[1735167621751,0.76559567,196.77,196.71,12.40772551]
[1735167621951,0.76559567,196.77,196.73,12.40772551]
[1735167622941,0.76559567,196.77,196.71,12.40772551]
[1735167623138,0.12549,196.76,196.71,12.40772551]
[1735167623449,13.17332118,196.75,196.67,12.40772551]
[1735167623954,0.12549,196.74,196.67,12.40772551]
[1735167624151,0.12549,196.72,196.65,12.40772551]
[1735167624330,0.12549,196.7,196.63,12.40772551]
[1735167625853,14.74192118,196.71,196.63,12.40772551]
[1735167626035,14.74192118,196.71,196.65,12.40772551]
[1735167626036,2.33419567,196.71,196.65,12.40772551]
[1735167626547,2.33419567,196.71,196.67,12.40772551]
[1735167627433,1.5686,196.71,196.67,12.40772551]
[1735167631749,1.6227,196.77,196.69,12.40772551]
[1735167631956,0.76559567,196.8,196.74,12.40772551]
[1735167632559,0.76559567,196.8,196.76,12.40772551]
[1735167633146,0.76559567,196.81,196.76,12.40772551]
[1735167635442,0.76559567,196.83,196.79,12.40772551]
[1735167635642,0.76559567,196.85,196.8,12.40772551]
[1735167636063,0.76559567,196.85,196.79,12.40772551]
[1735167637539,7.16799567,196.86,196.79,12.40772551]
[1735167637856,7.16799567,196.86,196.81,12.40772551]
[1735167638058,0.76559567,196.86,196.81,12.40772551]
[1735167638240,0.76559567,196.87,196.81,12.40772551]
[1735167640183,13.17332118,196.87,196.79,12.40772551]
[1735167640846,12.40772551,196.85,196.77,12.40772551]
[1735167641052,0.76559567,196.84,196.77,12.40772551]
[1735167641465,0.76559567,196.84,196.79,12.40772551]
[1735167641667,0.76559567,196.86,196.79,12.40772551]
[1735167644461,0.76559567,196.86,196.81,12.40772551]
[1735167644670,0.76559567,196.87,196.81,12.40772551]
[1735167647662,1.6227,196.88,196.83,12.40772551]
[1735167650064,18.81012551,196.91,196.83,12.40772551]
[1735167650961,6.4024,196.91,196.85,12.40772551]
[1735167651670,1.5737,196.93,196.87,12.40772551]
[1735167652374,1.5737,196.93,196.88,12.40772551]
[1735167654478,0.76559567,196.95,196.88,12.40772551]
[1735167654853,6.5494,196.96,196.9,12.40772551]
[1735167655076,7.31499567,196.96,196.9,12.40772551]
[1735167655481,0.76559567,196.96,196.9,12.40772551]
[1735167655676,1.5737,196.98,196.92,12.40772551]
[1735167655866,1.5737,196.98,196.94,12.40772551]
[1735167657765,1.5737,196.98,196.92,12.40772551]
[1735167659785,0.76559567,196.97,196.92,12.40772551]
[1735167660563,0.76559567,196.97,196.9,12.40772551]
[1735167660764,12.40772551,196.96,196.88,12.40772551]
[1735167661064,0.76559567,196.95,196.88,12.40772551]
[1735167661486,13.17332118,196.95,196.87,12.40772551]
[1735167661985,0.12549,196.94,196.87,12.40772551]
[1735167662161,0.12549,196.94,196.88,12.40772551]
[1735167662563,0.76559567,196.95,196.88,12.40772551]
[1735167662788,0.76559567,196.96,196.88,12.40772551]
[1735167663098,0.76559567,196.96,196.9,12.40772551]
[1735167664891,1.5737,196.98,196.92,12.40772551]
[1735167665065,2.33929567,196.98,196.92,12.40772551]
[1735167665487,1.5737,196.98,196.92,12.40772551]
[1735167667896,1.5737,196.98,196.94,12.40772551]
[1735167668093,6.5494,197.01,196.96,12.40772551]
[1735167668297,13.95472551,197.03,196.96,12.40772551]
[1735167668796,1.547,197.03,196.96,12.40772551]
[1735167669107,1.547,197.03,196.98,12.40772551]
[1735167669799,1.547,197.09,197.02,12.40772551]
[1735167670013,1.547,197.09,197.04,12.40772551]
[1735167671695,6.1516,197.11,197.06,12.40772551]
[1735167671881,13.95472551,197.14,197.06,12.40772551]
[1735167671882,0.76559567,197.13,197.06,12.40772551]
[1735167673313,1.547,197.14,197.1,12.40772551]
[1735167674281,6.91719567,197.18,197.12,12.40772551]